Cogmind - Beta 11 @@@ ROGUE MODE // 2022.03.31 @ 00:16:46 Player: arcadio Result: Destroyed by Cetus Guard with Advanced Variable Charge Gun Performance ------------- Evolutions (4) 2000 Regions Visited (10) 2000 Robots Destroyed (71) 355 Value Destroyed (1946) 1946 Prototype IDs (9) 180 Alien Tech Used (0) 0 Bonus (1912) 1912 TOTAL SCORE: 8393 Bonus ------- High Alert Combat Kills 279 Follower Combat Kills 1214 Entered DSFs 500 Friendly Fire -81 Cogmind --------- Core Integrity 0/850 Matter 58/300 Energy 99/100 System Corruption 16% Temperature Cool (9) Movement Core (50) Location -6/Cetus Parts ------- > --- POWER (2) -------- (None) > --- PROPULSION (3) --- (None) > --- UTILITY (8) ------ Improved Signal Interpreter Launcher Guidance Computer Target Analyzer > --- WEAPON (2) ------- (None) > --- INVENTORY (5) ---- Cooled Aerolev Unit Improved Shield Generator Authchip [Processor] Heavy Laser Magnetic Acceleration Cannon Peak State ------------ > --- POWER ------------ Light Angular Momentum Engine Light Fission Core > --- PROPULSION ------- Gravmag System Gravmag System Cooled Aerolev Unit > --- UTILITY ---------- Improved Trap Scanner Advanced Visual Processing Unit Improved Sensor Array Improved Signal Interpreter Improved Melee Analysis Suite Target Analyzer ECM Suite System Restoration Module > --- WEAPON ----------- Heavy Machine Gun > --- INVENTORY -------- Improved Shield Generator Authchip [Processor] Magnetic Acceleration Cannon Missile Launcher Precision Rocket Launcher [Rating: 57] Favorites ----------- Power Ion Engine Engine Ion Engine Power Core Light Nuclear Core Propulsion VTOL Module Treads Light Treads Leg Aluminum Leg Wheel Wheel Hover Unit Gravmag System Flight Unit VTOL Module Utility Visual Processing Unit Device ECM Suite Storage Small Storage Unit Processor Visual Processing Unit Hackware Improved Hacking Suite Weapon Heavy Assault Rifle Energy Gun Small Laser Ballistic Gun Heavy Assault Rifle Ballistic Cannon Magnetic Acceleration Cannon Launcher Mini Grenade Launcher Special Weapon Mining Laser Build | -11 -10 -10 -9 -9 -9 -7 -7 -6 -6 -6 ------- Run | Scr Mat Min Mat Sto Rec Fac DSF Fac Ext Cet Slots Evolved 8 | . . . 2 . . 4 . 2 . . Power 1 | . . . . . . 1 . . . . Propulsion 1 | . . . . . . 1 . . . . Utility 6 | . . . 2 . . 2 . 2 . . Weapon . | . . . . . . . . . . . Parts Attached 117 | 6 20 6 6 27 7 . 3 20 20 2 Power 15 | 1 3 . . 4 . . . 4 3 . Engine 11 | 1 1 . . 4 . . . 2 3 . Core 4 | . 2 . . . . . . 2 . . Reactor . | . . . . . . . . . . . Propulsion 28 | 2 4 3 4 7 . . . 4 4 . Treads 5 | . . 1 . . . . . 1 3 . Leg 2 | . . 1 . . . . . . 1 . Wheel 6 | 2 2 . 2 . . . . . . . Hover 7 | . 2 . . 2 . . . 3 . . Flight 8 | . . 1 2 5 . . . . . . Utility 29 | 1 5 . . 6 1 . 3 9 4 . Device 16 | . 3 . . 4 1 . . 6 2 . Storage 2 | 1 1 . . . . . . . . . Processor 10 | . 1 . . 2 . . 3 3 1 . Hackware 1 | . . . . . . . . . 1 . Protection . | . . . . . . . . . . . Artifact . | . . . . . . . . . . . Weapon 45 | 2 8 3 2 10 6 . . 3 9 2 Energy Gun 14 | . 1 . 1 3 6 . . . 3 . Energy Cannon . | . . . . . . . . . . . Ballistic Gun 12 | 2 5 2 . 2 . . . 1 . . Ballistic Cannon 4 | . . . . . . . . 2 1 1 Launcher 11 | . 2 1 . 2 . . . . 5 1 Special Weapon 4 | . . . 1 3 . . . . . . Impact Weapon . | . . . . . . . . . . . Slashing Weapon . | . . . . . . . . . . . Piercing Weapon . | . . . . . . . . . . . Special Melee Weapon . | . . . . . . . . . . . Unidentified Prototypes 3 | . . . . 3 . . . . . . Corrupted Parts 2 | . . . . . . . . . 2 . System Corruption 12 | . . . . . . . . . 12 . Parts Lost 26 | . 1 2 1 2 . . 2 . 6 12 Power 6 | . 1 . 1 . . . . . 2 2 Propulsion 8 | . . 2 . . . . 1 . 2 3 Utility 7 | . . . . . . . 1 . 1 5 Weapon 5 | . . . . 2 . . . . 1 2 Highest Loss Streak 12 | . 1 1 1 2 . . 2 . 5 12 To Critical Strikes 1 | . . . . . . . . . . 1 Average Slot Usage (%) 85 | . 99 97 67 82 76 . 51 74 80 78 Engine 8 | . 5 14 8 8 11 . 7 7 7 8 Core 2 | . 7 . . . . . . 2 2 . Treads 1 | . . 1 1 . . . . 2 6 13 Leg 2 | . . 11 1 . . . . . . . Wheel 4 | . 24 . 2 . . . . . . . Hover 6 | . 2 12 . 7 . . . 7 9 . Flight 4 | . . . 17 14 22 . 11 2 . . Device 12 | . 3 14 11 13 13 . 3 15 15 16 Storage 2 | . 12 . . . . . . . . . Processor 21 | . 11 14 11 22 26 . 28 34 27 23 Energy Gun 2 | . 1 . 8 8 2 . . . 1 3 Ballistic Gun 9 | . 26 15 5 4 . . . 1 2 . Launcher 2 | . . 12 . . . . . . . 6 Naked Turns . | . . . . . . . . . . . Heaviest Build 38 | 12 21 11 11 17 14 8 8 28 38 38 Greatest Support 68 | 26 26 20 20 26 8 8 8 28 68 68 Greatest Overweight (x) 3 | . . 1 3 2 1 . 1 3 1 . Average Overweight (x) . | . . . . . . . . . . . Largest Inventory Capacity 10 | 8 10 5 5 5 5 5 5 5 5 5 Average Capacity 5 | 7 8 5 5 5 5 5 5 5 5 5 Most Carried 10 | 6 10 5 5 5 5 5 5 5 5 5 Average Carried 5 | 3 8 4 4 4 4 5 5 4 4 5 Final Capacity 8 | 8 5 5 5 5 5 5 5 5 5 5 Final Carried 6 | 6 4 5 4 5 5 5 5 5 5 5 Class Distribution -------------------- 59% | Mutant 13% | Scavenger-Mutant 9% | Scavenger-Scout 6% | Scavenger-Skirmisher 4% | Scavenger-Sprinter 3% | Sprinter 3% | Commander-Mutant Dominant Class ---------------- Mutant | -10/Materials Mutant | -10/Mines Mutant | -9/Materials Scavenger-Mutant | -9/Storage Mutant | -9/Recycling Mutant | -7/Factory Mutant | -7/DSF Mutant | -6/Factory Scavenger-Scout | -6/Extension Scavenger-Skirmisher | -6/Cetus Resources | -11 -10 -10 -9 -9 -9 -7 -7 -6 -6 -6 ----------- Run | Scr Mat Min Mat Sto Rec Fac DSF Fac Ext Cet Matter Collected 2127 | 197 532 46 60 485 44 . 3 156 604 . Remotely . | . . . . . . . . . . . Salvage Created 2190 | . 579 6 10 551 44 . . 52 923 25 Parts 135 | . 40 3 3 36 7 . . 7 39 . Haulers Intercepted 8 | . 2 . . 5 . . . . 1 . Recyclers Shooed 3 | . . 2 . . . . . . 1 . Parts Field Recycled . | . . . . . . . . . . . Retrieved Matter . | . . . . . . . . . . . Parts Self-Destructed . | . . . . . . . . . . . Prevented . | . . . . . . . . . . . Kills | -11 -10 -10 -9 -9 -9 -7 -7 -6 -6 -6 ------- Run | Scr Mat Min Mat Sto Rec Fac DSF Fac Ext Cet Combat Hostiles Destroyed 43 | . 11 3 . 7 4 . . 1 17 . Guns 19 | . 8 . . 5 4 . . . 2 . Cannons 2 | . . . . . . . . 1 1 . AOE 22 | . 3 3 . 2 . . . . 14 . Classes Destroyed 15 | . 7 . . 3 1 . . 1 3 . Worker 3 | . 1 . . . . . . . 2 . Builder 5 | . . . . 3 . . . . 2 . Tunneler 1 | . 1 . . . . . . . . . Hauler 8 | . 2 . . 5 . . . . 1 . Recycler 2 | . . . . . . . . . 2 . Operator 2 | . 1 . . 1 . . . . . . Drone 4 | . . . . . 4 . . . . . Watcher 7 | . 3 . 1 1 . . . 1 . 1 Swarmer 6 | . 3 3 . . . . . . . . Grunt 23 | . 8 . . 3 . . . . 12 . Brawler 1 | . . . . . . . . . 1 . Duelist 1 | . . . . 1 . . . . . . Sentry 4 | . . . . 3 . . . . 1 . Hunter 3 | . . . . . . . . . 3 . Programmer 1 | . . . . . . . . 1 . . Best Kill Streak 11 | . 4 3 1 4 2 . . 1 11 1 Combat Bots Only 9 | . 4 3 . 4 2 . . 1 9 . Max Kills in Single Turn 3 | . 3 2 1 2 1 . . 1 2 1 Gunslinging . | . . . . . . . . . . . Exploded 2 | . 2 2 . 1 . . . . 2 . Melee . | . . . . . . . . . . . Uniques/NPCs Destroyed . | . . . . . . . . . . . Combat | -11 -10 -10 -9 -9 -9 -7 -7 -6 -6 -6 -------- Run | Scr Mat Min Mat Sto Rec Fac DSF Fac Ext Cet Damage Taken 4085 | . 408 113 208 544 . . 241 206 1627 738 Core 1283 | . 114 30 51 78 . . 157 68 435 350 Absorbed by Shields 176 | . . . . . . . . 45 131 . Regen/Repaired (Parts) 42 | . 29 . . 13 . . . . . . Core Remaining (%) 71 | 100 . 42 . . 67 . 77 . . . Volleys Fired 211 | . 47 2 4 78 21 . . 7 50 2 Largest 2 | . 2 1 1 2 1 . . 1 2 2 Hottest 122 | . 63 30 100 100 56 . . 53 122 79 Shots Fired 279 | . 88 2 4 96 21 . . 7 57 4 Gun 215 | . 84 . 3 84 21 . . . 23 . Cannon 22 | . . . . . . . . 7 15 . Launcher 37 | . 4 2 . 8 . . . . 19 4 Special 5 | . . . 1 4 . . . . . . Kinetic 137 | . 78 . . 18 . . . 7 34 . Thermal 105 | . 6 . 4 70 21 . . . 4 . Explosive 37 | . 4 2 . 8 . . . . 19 4 Electromagnetic . | . . . . . . . . . . . Robot Hit Streak 15 | . 8 . 2 6 2 . . 2 13 15 Robot Miss Streak 4 | . 2 1 1 4 3 . . 3 2 . Penetration Max . | . . . . . . . . . . . Secondary Targets 1 | . . . . 1 . . . . . . Max Gunslinging Chain 1 | . . . . 1 . . . . . . Shots Hit Robots 171 | . 58 . 2 61 9 . . 3 36 2 Core Hits 125 | . 27 3 2 25 4 . . 2 51 11 Critical Kills 1 | . . . . . . . . . 1 . Critical Parts Destroyed 1 | . . . . 1 . . . . . . Critical Strikes 5 | . . . . 2 . . . . 3 . Burn 1 | . . . . 1 . . . . . . Destroy 2 | . . . . 1 . . . . 1 . Blast 2 | . . . . . . . . . 2 . Melee Attacks . | . . . . . . . . . . . Impact . | . . . . . . . . . . . Slashing . | . . . . . . . . . . . Piercing . | . . . . . . . . . . . Sneak Attacks . | . . . . . . . . . . . Combat Hostiles . | . . . . . . . . . . . Follow-up Attacks . | . . . . . . . . . . . Damage Inflicted 6570 | . 1142 193 22 1154 130 . . 99 3409 421 Guns 2029 | . 843 . 22 754 130 . . . 280 . Cannons 394 | . . . . . . . . 99 295 . Explosions 4089 | . 282 179 . 389 . . . . 2818 421 Melee . | . . . . . . . . . . . Ramming 58 | . 17 14 . 11 . . . . 16 . Kinetic 1662 | . 810 . . 215 . . . 99 538 . Thermal 761 | . 33 . 22 539 130 . . . 37 . Explosive 4089 | . 282 179 . 389 . . . . 2818 421 Electromagnetic . | . . . . . . . . . . . Impact . | . . . . . . . . . . . Slashing . | . . . . . . . . . . . Piercing . | . . . . . . . . . . . Highest Corruption 16 | . . . 1 2 2 . . 1 15 16 Average Corruption 3 | . . . 1 1 2 . . 1 7 15 Corruption Purged 1 | . . . . . . . . 1 . . Corruption Blocked . | . . . . . . . . . . . Effects 55 | . . . . 11 5 . . 2 35 2 Message Errors 13 | . . . . 1 2 . . . 10 . Matter Fused 18 | . . . . 6 2 . . 1 8 1 Heat Flow Errors 4 | . . . . . . . . . 3 1 Energy Discharges 5 | . . . . 1 . . . . 4 . Parts Rejected 2 | . . . . 1 . . . . 1 . Data Loss (minor) 4 | . . . . 1 1 . . 1 1 . Data Loss (major) 3 | . . . . . . . . . 3 . Alerts 3 | . . . . 1 . . . . 2 . Misdirections 1 | . . . . . . . . . 1 . Weapon Failures 2 | . . . . . . . . . 2 . Overload Shots . | . . . . . . . . . . . Overflow Damage 120 | . . 5 . 15 . . . 12 88 . Projectiles 12 | . . . . . . . . 12 . . Explosions 107 | . . 5 . 14 . . . . 88 . Melee 1 | . . . . 1 . . . . . . Knockbacks 1 | . . . . . . . . . 1 . Impact . | . . . . . . . . . . . Kinetic 1 | . . . . . . . . . 1 . Secondary . | . . . . . . . . . . . Self-Inflicted Damage 126 | . 8 39 . 49 . . . . 30 . Shots 5 | . . 2 . 2 . . . . 1 . Rammed 6 | . 1 . . 1 . . . 1 3 . Targets Rammed 9 | . 1 3 . 1 . . . 1 3 . Kicked 3 | . . 3 . . . . . . . . Crushed . | . . . . . . . . . . . Highest Temperature 223 | . 27 . 1 14 . . . 6 223 206 Average Temperature 32 | . 10 . 1 3 . . . 4 45 106 Received Heat Transfer 998 | . 198 . 63 180 . . . 9 458 90 Siege Activations . | . . . . . . . . . . . Robots Corrupted . | . . . . . . . . . . . Combat Hostiles . | . . . . . . . . . . . Parts Fried . | . . . . . . . . . . . Impact Corruptions 1 | . . . . 1 . . . . . . Robots Melted . | . . . . . . . . . . . Combat Hostiles . | . . . . . . . . . . . Parts Melted 2 | . . . . 2 . . . . . . Heat Transferred 1861 | . 75 . 50 1329 333 . . . 74 . Parts Sabotaged . | . . . . . . . . . . . Parts Stolen . | . . . . . . . . . . . Parts Stripped . | . . . . . . . . . . . Power Chain Reactions . | . . . . . . . . . . . Missiles Intercepted . | . . . . . . . . . . . Alert | -11 -10 -10 -9 -9 -9 -7 -7 -6 -6 -6 ------- Run | Scr Mat Min Mat Sto Rec Fac DSF Fac Ext Cet Peak Influence 1019 | . 240 139 401 545 285 1019 716 410 871 521 Initial 1019 | . . 43 . 175 212 1019 716 365 60 487 Average 231 | . 128 55 167 377 196 1019 704 202 403 481 Maximum Alert Level 3 | . 1 . 2 2 1 3 3 2 3 2 Low Security (%) 51 | 100 76 100 60 3 68 . . 58 14 . Level 1 23 | . 23 . 38 49 31 . . 11 30 . Level 2 22 | . . . . 46 . . 52 29 45 100 Level 3 2 | . . . . . . 100 47 . 10 . Level 4 . | . . . . . . . . . . . Level 5 . | . . . . . . . . . . . High Security . | . . . . . . . . . . . Max Security . | . . . . . . . . . . . Squads Dispatched 14 | . 2 . . 1 . . . 3 8 . Investigation 4 | . . . . . . . . 1 3 . Extermination 2 | . . . . . . . . 2 . . Reinforcement 7 | . 2 . . 1 . . . . 4 . Assault 1 | . . . . . . . . . 1 . Garrison . | . . . . . . . . . . . Intercept . | . . . . . . . . . . . Searches Triggered 1 | . . . . . . . . 1 . . Construction Impeded 3 | . . . . . . . . . 3 . Haulers Reinforced . | . . . . . . . . . . . Active Scanning Responses . | . . . . . . . . . . . Cargo Convoy Interrupts 1 | . . . . . . . . 1 . . Stealth | -11 -10 -10 -9 -9 -9 -7 -7 -6 -6 -6 --------- Run | Scr Mat Min Mat Sto Rec Fac DSF Fac Ext Cet Distress Signals 13 | . 2 . 4 4 . . . . 2 1 Communications Jammed . | . . . . . . . . . . . Distress Signals . | . . . . . . . . . . . Times Spotted 182 | . 19 3 30 28 14 . 3 14 61 10 Peak Tracking Total 11 | . 5 3 11 6 4 . 3 9 7 9 Tactical Retreats 22 | . . . 7 1 . . . 3 11 . Traps | -11 -10 -10 -9 -9 -9 -7 -7 -6 -6 -6 ------- Run | Scr Mat Min Mat Sto Rec Fac DSF Fac Ext Cet Traps Triggered 10 | . 1 1 1 4 . . 1 1 1 . Indirectly . | . . . . . . . . . . . Trap Hack Attempts . | . . . . . . . . . . . Triggered . | . . . . . . . . . . . Disarmed . | . . . . . . . . . . . Reprogrammed . | . . . . . . . . . . . Reused . | . . . . . . . . . . . Traps Extracted . | . . . . . . . . . . . Installed . | . . . . . . . . . . . Triggered . | . . . . . . . . . . . Machines | -11 -10 -10 -9 -9 -9 -7 -7 -6 -6 -6 ---------- Run | Scr Mat Min Mat Sto Rec Fac DSF Fac Ext Cet Machines Disabled 8 | . 1 . . 2 . . . . 5 . Max in Single Turn 2 | . 1 . . 1 . . . . 2 . Garrison Access 1 | . . . . . . . . 1 . . Machines Sabotaged . | . . . . . . . . . . . Garrisons Compromised . | . . . . . . . . . . . Overloaded Fab Kills . | . . . . . . . . . . . Hacking | -11 -10 -10 -9 -9 -9 -7 -7 -6 -6 -6 --------- Run | Scr Mat Min Mat Sto Rec Fac DSF Fac Ext Cet Machines Accessed 54 | . 9 2 6 10 6 1 . 11 9 . Terminals 46 | . 6 . 6 9 6 1 . 9 9 . Fabricators . | . . . . . . . . . . . Repair Stations 2 | . 1 . . 1 . . . . . . Recycling Units 2 | . 2 . . . . . . . . . Scanalyzers 1 | . . . . . . . . 1 . . Garrison Access 1 | . . . . . . . . 1 . . Total Hacks 141 | . 27 2 17 27 19 1 . 28 20 . Successful 78 | . 14 2 11 16 12 1 . 12 10 . Failed 63 | . 13 . 6 11 7 . . 16 10 . Catastrophic 6 | . 2 . . 1 1 . . 2 . . Database Lockouts . | . . . . . . . . . . . Manual 72 | . 17 . 16 16 8 . . 13 2 . Terminals 128 | . 21 . 17 25 19 1 . 25 20 . Fabricators . | . . . . . . . . . . . Repair Stations 5 | . 3 . . 2 . . . . . . Recycling Units 3 | . 3 . . . . . . . . . Scanalyzers 2 | . . . . . . . . 2 . . Garrison Access 1 | . . . . . . . . 1 . . Terminal Hacks 44 | . 5 2 3 9 9 1 . 6 9 . Record 2 | . . . 1 . . . . 1 . . Part Schematic 1 | . 1 . . . . . . . . . Robot Analysis 3 | . . . . 1 1 . . 1 . . Prototype ID Bank 3 | . 1 . 1 . 1 . . . . . Open Door 10 | . . 2 . 2 . . . . 6 . Open DSF 3 | . . . . . . 1 . 2 . . Level Access Points 1 | . . . . . 1 . . . . . Branch Access Points 1 | . . . . . . . . 1 . . Terminal Index 5 | . 1 . 1 1 1 . . 1 . . Garrison Index 1 | . . . . . 1 . . . . . Alert Level 5 | . 1 . . 2 1 . . . 1 . Unreport Threat 4 | . . . . 1 1 . . . 2 . Locate Traps 2 | . 1 . . 1 . . . . . . Dispatch Records 1 | . . . . 1 . . . . . . Hauler Manifests 1 | . . . . . 1 . . . . . Registered Components 1 | . . . . . 1 . . . . . Fabricator Hacks . | . . . . . . . . . . . Repair Station Hacks 4 | . 2 . . 2 . . . . . . Scan Component 2 | . 1 . . 1 . . . . . . Repair 2 | . 1 . . 1 . . . . . . Recycling Unit Hacks 2 | . 2 . . . . . . . . . Retrieve Matter 2 | . 2 . . . . . . . . . Scanalyzer 1 | . . . . . . . . 1 . . Insert Component 1 | . . . . . . . . 1 . . Garrison Access Hacks 1 | . . . . . . . . 1 . . Seal Access 1 | . . . . . . . . 1 . . Unauthorized Hacks 26 | . 5 . 8 5 3 . . 4 1 . Terminals 25 | . 4 . 8 5 3 . . 4 1 . Track 2 | . 1 . 1 . . . . . . . Assimilate 1 | . . . . 1 . . . . . . Botnet 16 | . 2 . 4 3 3 . . 3 1 . Detonate 1 | . . . 1 . . . . . . . Operators 5 | . 1 . 2 1 . . . 1 . . Fabricators . | . . . . . . . . . . . Repair Stations . | . . . . . . . . . . . Recycling Units 1 | . 1 . . . . . . . . . Reject 1 | . 1 . . . . . . . . . Scanalyzers . | . . . . . . . . . . . Garrison Access . | . . . . . . . . . . . Data Cores Recovered . | . . . . . . . . . . . Used . | . . . . . . . . . . . Hacking Detections 43 | . 9 . 6 8 6 . . 9 5 . Full Trace Events 4 | . . . . 1 . . . 1 2 . Feedback Events . | . . . . . . . . . . . Feedback Blocked . | . . . . . . . . . . . Robot Schematics Acquired . | . . . . . . . . . . . Robots Built . | . . . . . . . . . . . Authchips . | . . . . . . . . . . . Time . | . . . . . . . . . . . Total Robot Build Rating . | . . . . . . . . . . . Part Schematics Acquired 1 | . 1 . . . . . . . . . Parts Built . | . . . . . . . . . . . Authchips . | . . . . . . . . . . . Time . | . . . . . . . . . . . Total Part Build Rating . | . . . . . . . . . . . Parts Repaired 2 | . 1 . . 1 . . . . . . Time 52 | . 26 . . 26 . . . . . . Parts Recycled . | . . . . . . . . . . . Recycled Matter . | . . . . . . . . . . . Retrieved Matter . | . . . . . . . . . . . Retrieved Components . | . . . . . . . . . . . Parts Scanalyzed . | . . . . . . . . . . . Part Schematics Acquired . | . . . . . . . . . . . Parts Damaged . | . . . . . . . . . . . Bothacking | -11 -10 -10 -9 -9 -9 -7 -7 -6 -6 -6 ------------ Run | Scr Mat Min Mat Sto Rec Fac DSF Fac Ext Cet Used RIF Installer . | . . . . . . . . . . . Robots Hacked . | . . . . . . . . . . . Non-combat . | . . . . . . . . . . . Combat . | . . . . . . . . . . . Robot Hacks Applied . | . . . . . . . . . . . Relay Couplers Released . | . . . . . . . . . . . Fabnet Peak Effective % . | . . . . . . . . . . . Robots Rewired . | . . . . . . . . . . . Allies Hacked . | . . . . . . . . . . . Hacks Repelled . | . . . . . . . . . . . Allies | -11 -10 -10 -9 -9 -9 -7 -7 -6 -6 -6 -------- Run | Scr Mat Min Mat Sto Rec Fac DSF Fac Ext Cet Total Allies 19 | . . . . 10 . . . . 9 . Largest Group 10 | . . . . 10 . . . . 5 . Highest-Rated Group 268 | . . . . 88 . . . . 268 . Highest-Rated Ally 159 | . . . . 16 . . . . 159 . Total Orders 4 | . . . . 2 2 . . . . . EXPLORE 4 | . . . . 2 2 . . . . . Ally Attacks 155 | . . . . 55 . . . . 100 . Total Damage 3615 | . . . . 520 . . . . 3095 . Kills 41 | . . . . 13 . . . . 28 . Allies Corrupted 1 | . . . . 1 . . . . . . Allies Melted . | . . . . . . . . . . . Intel | -11 -10 -10 -9 -9 -9 -7 -7 -6 -6 -6 ------- Run | Scr Mat Min Mat Sto Rec Fac DSF Fac Ext Cet Robot Analysis Total 3 | . . . . 1 1 . . 1 . . Derelict Logs Recovered 1 | . . 1 . . . . . . . . Drone Launches 4 | . . . . 2 2 . . . . . Drone Recoveries . | . . . . . . . . . . . Exploration | -11 -10 -10 -9 -9 -9 -7 -7 -6 -6 -6 ------------- Run | Scr Mat Min Mat Sto Rec Fac DSF Fac Ext Cet Turns Passed 5771 | 51 1107 996 222 1028 298 2 38 975 1013 41 Spaces Moved 5572 | 43 941 560 377 1374 490 5 61 821 871 29 Core 25 | 7 . . 1 . . . . 3 . 14 Treads 528 | . . 76 9 . . . . 189 239 15 Legs 371 | . . 371 . . . . . . . . Wheels 852 | 36 786 . 30 . . . . . . . Hover 1704 | . 155 113 . 385 . . . 419 632 . Flight 2092 | . . . 337 989 490 5 61 210 . . Fastest Speed 32 | 50 56 120 37 32 32 32 32 48 48 50 Average Speed 78 | 84 84 173 44 39 33 32 56 108 85 106 Slowest Speed 275 | 100 90 190 200 195 112 32 115 275 160 160 Overloaded Moves 384 | . . . . 384 . . . . . . Propulsion Burnouts . | . . . . . . . . . . . Robots Hopped 25 | . . . 2 15 8 . . . . . Cave-ins Triggered 1 | . . . . . . . . . . 1 Exploration Rate (%) 61 | 3 97 95 35 97 99 . 57 24 87 18 Regions Visited 10 Branch Regions 5 Pre-discovered Areas . | . . . . . . . . . . . Known Exits Taken 5 | . . . . 1 1 1 . 1 1 . Unknown Exits Taken 4 | 1 1 1 1 . . . . . . . Scrap Searched 1 | . . 1 . . . . . . . . Spaces Dug 34 | . 5 . 1 4 . . . . 24 . Terrain Destroyed 275 | . 22 26 1 67 . . . 3 103 53 Melee . | . . . . . . . . . . . Projectile 9 | . . . 1 4 . . . 3 1 . AOE 266 | . 22 26 . 63 . . . . 102 53 Terrain Rammed . | . . . . . . . . . . . Walls Destroyed . | . . . . . . . . . . . Machines Disabled . | . . . . . . . . . . . Actions | -11 -10 -10 -9 -9 -9 -7 -7 -6 -6 -6 --------- Run | Scr Mat Min Mat Sto Rec Fac DSF Fac Ext Cet Total 6635 | 54 1166 581 426 1735 598 4 63 898 1077 33 Wait 603 | . 130 6 31 203 80 . . 33 120 . Move 5516 | 42 940 559 372 1348 473 4 60 820 870 28 Hop 20 | . . . 2 10 8 . . . . . Pick Up 33 | 6 12 2 3 6 1 . . 2 1 . Fast Attach 65 | 6 6 3 3 18 . . 3 16 10 . Attach 29 | . 4 1 3 7 7 . . 3 4 . Detach 19 | . . 1 1 6 6 . . 2 3 . Swap 23 | . 10 2 . 2 . . . 1 6 2 Drop 63 | . 16 2 7 20 2 . . 13 3 . Fire 211 | . 47 2 4 78 21 . . 7 50 2 Melee . | . . . . . . . . . . . Ram 6 | . 1 . . 1 . . . 1 3 . Kick 3 | . . 3 . . . . . . . . Crush . | . . . . . . . . . . . Escape Stasis 37 | . . . . 36 . . . . . 1 Rewire 7 | . . . . . . . . . 7 . Trap . | . . . . . . . . . . . Miscellaneous . | . . . . . . . . . . . Route ------- -11/Scrapyard -10/Materials (discovered 5 exits: *Mat x3 / *Min x2) -10/Mines (discovered 2 exits: *Mat x2) -9/Materials -9/Storage (discovered 2 exits: *Mat / *Rec) -9/Recycling -7/Factory -7/DSF -6/Factory (discovered 6 exits: *Fac x2 / Low x2 / *Ext x2) -6/Extension (discovered 2 exits: *Fac / *Cet) -6/Cetus History --------- Turn | Location | Event 18 | -11/Scrapyard | Discovered new exit (range 14) 52 | -11/Scrapyard | Entered Materials 323 | -10/Materials | Build established: Mutant 330 | -10/Materials | Discovered new exit (range 13) 562 | -10/Materials | Repaired Com. Wheel 591 | -10/Materials | Discovered new exit (range 18) 776 | -10/Materials | Discovered new exit (range 5) 865 | -10/Materials | Discovered new exit (range 7) 1037 | -10/Materials | Discovered new exit (range 18) 1159 | -10/Materials | Entered Mines 1165 | -10/Mines | Core integrity fell below 50% 1166 | -10/Mines | Met a Derelict bent on vengeance 1253 | -10/Mines | Learned Materials non-interactive machine intel 1425 | -10/Mines | Discovered new exit (range 5) 1663 | -10/Mines | Found the Drone Emporium 2009 | -10/Mines | Met a Derelict who couldn't figure out how to use a Trap Extractor 2126 | -10/Mines | Discovered new exit (range 18) 2155 | -10/Mines | Entered Materials 2155 | -9/Materials | Evolved 2 slots: Utility x2 2156 | -9/Materials | Loaded intel: 30 non-interactive machine locations 2242 | -9/Materials | Discovered new exit (range 10) 2377 | -9/Materials | Entered Storage 2396 | -9/Storage | Assisted by bots powering up and referring to "LRC-V3" 2800 | -9/Storage | Repaired ECM Suite 3196 | -9/Storage | Discovered new exit (range 14) 3204 | -9/Storage | Identified exit to Materials 3404 | -9/Storage | Used back door to open Recycling access 3404 | -9/Storage | Discovered new exit (range 4) 3404 | -9/Storage | Identified exit to Recycling 3405 | -9/Storage | Entered Recycling 3419 | -9/Recycling | Spotter reported a threat 3425 | -9/Recycling | Spotter reported a threat 3441 | -9/Recycling | Identified exit to Factory 3473 | -9/Recycling | Spotter reported a threat 3476 | -9/Recycling | Spotter reported a threat 3477 | -9/Recycling | Spotter reported a threat 3486 | -9/Recycling | Spotter reported a threat 3526 | -9/Recycling | Spotter reported a threat 3530 | -9/Recycling | Spotter reported a threat 3539 | -9/Recycling | Spotter reported a threat 3597 | -9/Recycling | Spotter reported a threat 3597 | -9/Recycling | Spotter reported a threat 3605 | -9/Recycling | Spotter reported a threat 3622 | -9/Recycling | Spotter reported a threat 3650 | -9/Recycling | Spotter reported a threat 3665 | -9/Recycling | Spotter reported a threat 3675 | -9/Recycling | Spotter reported a threat 3703 | -9/Recycling | Spotter reported a threat 3703 | -9/Recycling | Entered Factory 3703 | -7/Factory | Evolved 4 slots: Power x1, Propulsion x1, Utility x2 3705 | -7/Factory | Identified exit to DSF 3705 | -7/Factory | Entered DSF 3709 | -7/DSF | Discovered new exit (range 18) 3729 | -7/DSF | Additional patrols routed to DSF 3742 | -7/DSF | Identified exit to Factory 3743 | -7/DSF | Entered Factory 3743 | -6/Factory | Evolved 2 slots: Utility x2 4093 | -6/Factory | Search patrols dispatched 4464 | -6/Factory | Discovered new exit (range 13) 4470 | -6/Factory | Identified exit to Factory 4578 | -6/Factory | Identified exit to Lower Caves 4578 | -6/Factory | Identified exit to Extension 4637 | -6/Factory | Cargo convoy interrupted 4645 | -6/Factory | Discovered exit to Factory (range 10) 4718 | -6/Factory | Entered Extension 4759 | -6/Extension | Spotted B-75 Beast 4887 | -6/Extension | Rescued a captive Derelict 4888 | -6/Extension | Rescued a captive Derelict 4941 | -6/Extension | Build established: Scavenger-Scout 5068 | -6/Extension | First assault squad dispatched 5112 | -6/Extension | Spotted B-75 Beast 5147 | -6/Extension | Lost 5 parts (2p2n1w) 5151 | -6/Extension | Rescued A7 5230 | -6/Extension | System corruption reached 10% 5250 | -6/Extension | Rescued a captive Derelict 5251 | -6/Extension | Rescued a captive Derelict 5290 | -6/Extension | Rescued a captive Derelict 5399 | -6/Extension | Rescued a captive Derelict 5526 | -6/Extension | Rescued a captive Derelict 5526 | -6/Extension | Rescued a captive Derelict 5603 | -6/Extension | Discovered exit to Factory (range 14) 5613 | -6/Extension | Discovered new exit (range 8) 5668 | -6/Extension | Disrupted transfer network 5681 | -6/Extension | Core integrity fell below 50% 5689 | -6/Extension | Disrupted transfer network 5712 | -6/Extension | Build established: Scavenger-Skirmisher 5712 | -6/Extension | Extracted ID and sensor layout for unrecognized location from A7's data core 5727 | -6/Extension | Destroyed 9 combat bots 5730 | -6/Extension | Identified exit to Cetus 5731 | -6/Extension | Entered Cetus 5752 | -6/Cetus | Spotted Cetus Guard 5752 | -6/Cetus | Spotted Cetus Guard 5755 | -6/Cetus | Spotted Cetus Guard 5755 | -6/Cetus | Spotted Cetus Guard 5769 | -6/Cetus | Core integrity fell below 20% 5771 | -6/Cetus | Crushed by falling debris 5772 | -6/Cetus | Destroyed by Cetus Guard with Advanced Variable Charge Gun Last Messages --------------- 05763_ Critical hit (Destroy). 05763_ Lgt. Treads destroyed. 05765_ Penetrated by Slug. 05765_ Med. Treads destroyed. 05765_ Missile Launcher destroyed. 05765_ Prc. Rocket Launcher destroyed. 05766_ The unstable cave ceiling collapses. 05767_ Slug penetrates Earth. 05768_ Slug penetrates Wall. 05768_ C-30 ARC bursts open, deploying its payload. 05768_ G-67 Veteran unfolds itself. 05768_ G-50 Soldier unfolds itself. 05768_ Imp. Sensor Array destroyed. 05771_ The unstable cave ceiling collapses. 05771_ Crushed by falling debris. 05771_ Imp. Hacking Suite destroyed. 05771_ System corrupted by crushing effect (+1). 05771_ Penetrated by Slug. 05771_ Adv. Heat Sink destroyed. [Achievement: This Is Interesting...] Map ----- +----------------------------------------------------+ | ?????????????????????????????????????????????????? | | ?????????????????????????????????????????????????? | | ?????????????????????????????????????????????????? | | ?????????????????????????????????????????????????? | | ?????????????????????????????????????????????????? | | ?????????????????????????????????????????????????? | | ?????????????????????????????????????????????????? | | ?????????????????????????????????????????????????? | | ????????????????? ?????????????????????????????? | | ????????????????# ?????????????????????????????? | | ????????????????# #????????????????????????????? | | ????????????????#"% #????????????????????????????? | | ????????????????# #????????????????????????????? | | ????????????????# #????????????????????????????? | | ????????????????# #????????????????????????????? | | ????????????????# #????????????????????????????? | | ????????????????# #????????????????????????????? | | ????????????????# #????????????????????????????? | | ????????????????# #????????????????????????????? | | ????????????????# #????????????????????????????? | | ???????????????## ###########??????????????????? | | ?????????????### # # #??????????????????? | | ?????????????# #?????" ?????????? | | ################ Y ## ????????? | | Y ; ?????????? | | % YY@ + ?????????? | | +?????????????????? | | ###################; ##?????????????????? | | ??????????????????#### #??????????????????? | | ????????????????????# # #??????????????????? | | ????????????????????####### ###??????????????????? | | ???????????????????????????##????????????????????? | | ?????????????????????????????????????????????????? | | ?????????????????????????????????????????????????? | | ?????????????????????????????????????????????????? | | ?????????????????????????????????????????????????? | | ?????????????????????????????????????????????????? | | ?????????????????????????????????????????????????? | | ?????????????????????????????????????????????????? | | ?????????????????????????????????????????????????? | | ?????????????????????????????????????????????????? | | ?????????????????????????????????????????????????? | | ?????????????????????????????????????????????????? | | ?????????????????????????????????????????????????? | | ?????????????????????????????????????????????????? | | ?????????????????????????????????????????????????? | | ?????????????????????????????????????????????????? | | ?????????????????????????????????????????????????? | | ?????????????????????????????????????????????????? | | ?????????????????????????????????????????????????? | +----------------------------------------------------+ Best States ------------- Heat Dissipation 56 Energy Generation 32 Energy Capacity 480 Matter Stores 300 Matter Capacity 300 Sight Range 20 Robot Scan Range 15 Terrain Scan Density 10 ECM Strength 1 Power Amplification 20 Resistance: EM 25 Evasion (%) 63 Melee Accuracy 6 Launcher Accuracy 20 Target Analysis 5 Recoil Reduction 3 Offensive Hacking 12 Authchip Count 1 Item Schematics ----------------- Grenade Launcher | -10/Materials | Hacked Robot Schematics ------------------ None Fabricated ------------ Nothing Alien Tech Used ----------------- None Achievements -------------- Cya! I Spy Prison Break This Is Interesting... \\IAMDERELICT Challenges ------------ None Game ------ Seed BladeDirtyStorm Manual? 0 Play Time 01:48:13 Cumulative 36.2 hours Start 2022.03.30 @ 18:07:01 End 2022.03.31 @ 00:16:46 Sessions 3 Manual Loads 0 Difficulty Rogue Special Mode None Game No. 32 Rogue 32 Adventurer 0 Explorer 0 Win Type - Total 0 Types 0/0/0/0/0/0/0/0/0 Lore% 25 Gallery% 32 Achievement% 28 Wizard Run 0 Options --------- ASCII 0 Keyboard 0 Movement Numpad Keybinds 0 Fullscreen 2 Font 18/SmallcapsGlow Map View 76x50 Tactical HUD 1 Map Filters NONE Filters NONE Steam 1 RUN: 016e7b69-f532-4857-b3d9-cde7c3d414fd